Cogmind - Beta 13 @@@ ROGUE MODE // 2024.04.19 @ 21:18:16 Player: Exceptionally Mediocre Result: Destroyed by WL-SFO(R) with Subdweller Machine Gun Performance ------------- Evolutions (0) 0 Regions Visited (3) 600 Robots Destroyed (33) 165 Value Destroyed (831) 831 Prototype IDs (0) 0 Alien Tech Used (0) 0 Bonus (0) 0 TOTAL SCORE: 1596 Bonus ------- None Cogmind --------- Core Integrity 0/250 Matter 7/300 Energy 100/100 System Corruption 0% Temperature Cool (0) Movement Treading (160) Location -10/Subcaves Parts ------- > --- POWER (1) -------- (None) > --- PROPULSION (2) --- Light Treads Spiked Treads > --- UTILITY (2) ------ Large Storage Unit Targeting Computer > --- WEAPON (2) ------- Grenade Launcher Hammer > --- INVENTORY (15) --- Light Ion Engine Subdweller Power Source Light Treads Light Treads Signal Interpreter Propulsion Shielding Weapon Shielding Hacking Suite Beam Cannon Beam Cannon Light Assault Rifle Battle Cannon Rocket Launcher Peak State ------------ > --- POWER ------------ Ion Engine > --- PROPULSION ------- Light Treads Light Treads > --- UTILITY ---------- Large Storage Unit Targeting Computer > --- WEAPON ----------- Assault Rifle Rocket Launcher > --- INVENTORY -------- Light Ion Engine Light Ion Engine Light Ion Engine Light Treads Light Treads Signal Interpreter Propulsion Shielding Weapon Shielding Hacking Suite Beam Cannon Beam Cannon Light Assault Rifle Grenade Launcher Grenade Launcher Hammer [Rating: 9] Favorites ----------- Power Ion Engine Engine Ion Engine Propulsion Light Treads Treads Light Treads Utility Targeting Computer Storage Large Storage Unit Processor Targeting Computer Protection Propulsion Shielding Weapon Assault Rifle Energy Gun Medium Laser Energy Cannon Beam Cannon Ballistic Gun Assault Rifle Launcher Rocket Launcher Impact Weapon Hammer Build | -11 -10 -10 -10 ------- Run | Yrd Mat Min Sub Slots Evolved . | . . . . Power . | . . . . Propulsion . | . . . . Utility . | . . . . Weapon . | . . . . Parts Attached 33 | 7 10 3 13 Power 5 | 1 3 . 1 Engine 5 | 1 3 . 1 Core . | . . . . Reactor . | . . . . Propulsion 7 | 2 2 1 2 Treads 7 | 2 2 1 2 Leg . | . . . . Wheel . | . . . . Hover . | . . . . Flight . | . . . . Utility 4 | 1 3 . . Device . | . . . . Storage 2 | 1 1 . . Processor 1 | . 1 . . Hackware . | . . . . Protection 1 | . 1 . . Artifact . | . . . . Weapon 17 | 3 2 2 10 Energy Gun 2 | 2 . . . Energy Cannon 4 | . 2 . 2 Ballistic Gun 3 | 1 . . 2 Ballistic Cannon . | . . . . Launcher 4 | . . 2 2 Special Weapon . | . . . . Impact Weapon 4 | . . . 4 Slashing Weapon . | . . . . Piercing Weapon . | . . . . Special Melee Weapon . | . . . . Unidentified Prototypes . | . . . . Parts Lost 4 | . . . 4 Power 2 | . . . 2 Propulsion 2 | . . . 2 Utility . | . . . . Weapon . | . . . . Highest Loss Streak 2 | . . . 2 To Critical Strikes . | . . . . Average Slot Usage (%) 99 | . 98 100 99 Engine 13 | . 13 14 13 Treads 28 | . 28 28 28 Storage 14 | . 14 14 14 Processor 13 | . 11 14 14 Energy Cannon 4 | . 11 . 1 Ballistic Gun 11 | . 14 14 6 Launcher 9 | . . 14 14 Impact Weapon 1 | . . . 6 Naked Turns . | . . . . Heaviest Build 35 | 12 30 31 35 Greatest Support 40 | 40 40 40 40 Greatest Overweight (x) . | . . . . Average Overweight (x) . | . . . . Largest Inventory Capacity 15 | 8 15 15 15 Average Capacity 14 | 7 13 15 15 Most Carried 15 | 5 15 15 15 Average Carried 13 | 1 11 15 14 Final Capacity 15 | 8 15 15 15 Final Carried 15 | 5 15 15 13 Class Distribution -------------------- 100% | Mutant Dominant Class ---------------- Mutant | -10/Materials Mutant | -10/Mines Mutant | -10/Subcaves Resources | -11 -10 -10 -10 ----------- Run | Yrd Mat Min Sub Matter Collected 721 | 278 254 41 148 Remotely . | . . . . Salvage Created 909 | 135 542 19 213 Parts 58 | 8 30 6 14 Haulers Intercepted 1 | . 1 . . Recyclers Shooed . | . . . . Parts Field Recycled . | . . . . Retrieved Matter . | . . . . Parts Self-Destructed . | . . . . Prevented . | . . . . Kills | -11 -10 -10 -10 ------- Run | Yrd Mat Min Sub Combat Hostiles Destroyed 23 | . 10 3 10 Guns 6 | . 5 . 1 Cannons 7 | . 5 . 2 AOE 10 | . . 3 7 Classes Destroyed 10 | 3 5 . 2 Worker 2 | 2 . . . Tunneler 1 | 1 . . . Hauler 1 | . 1 . . Recycler 2 | 1 1 . . Operator 2 | . 2 . . Watcher 2 | . 2 . . Swarmer 6 | . 3 3 . Grunt 7 | . 7 . . Artisan 1 | . . . 1 Subdweller 10 | . . . 10 Best Kill Streak 3 | 2 3 3 3 Combat Bots Only 3 | . 3 3 3 Max Kills in Single Turn 3 | 1 1 3 2 Gunslinging . | . . . . Exploded 3 | . . 3 2 Melee . | . . . . Uniques/NPCs Destroyed . | . . . . Combat | -11 -10 -10 -10 -------- Run | Yrd Mat Min Sub Hostile Shots Fired 96 | . 38 4 54 Missed 29 | . 12 1 16 Damage Taken 1346 | . 311 23 1012 Core 270 | . 17 16 237 Absorbed by Shields . | . . . . Redirected to Shielding 10 | . 10 . . Core Remaining (%) 100 | 100 . . . Volleys Fired 88 | 9 45 5 29 Largest 2 | 2 2 1 2 Hottest 100 | 70 80 33 100 Shots Fired 153 | 18 90 5 40 Gun 79 | 18 52 . 9 Cannon 53 | . 38 . 15 Launcher 21 | . . 5 16 Special . | . . . . Kinetic 73 | 9 45 . 19 Thermal 69 | 9 45 . 15 Explosive 11 | . . 5 6 Electromagnetic . | . . . . Robot Hit Streak 9 | 8 7 . 9 Robot Miss Streak 3 | 1 3 . 1 Penetration Max . | . . . . Secondary Targets . | . . . . Shots Hit Robots 96 | 12 54 . 30 Core Hits 55 | 5 26 3 21 Critical Kills . | . . . . Critical Parts Destroyed . | . . . . Critical Strikes 2 | 2 . . . Burn 2 | 2 . . . Melee Attacks 26 | . . . 26 Impact 26 | . . . 26 Slashing . | . . . . Piercing . | . . . . Sneak Attacks . | . . . . Combat Hostiles . | . . . . Follow-up Attacks . | . . . . Damage Inflicted 2687 | 145 811 158 1573 Guns 614 | 145 371 . 98 Cannons 578 | . 440 . 138 Explosions 1391 | . . 158 1233 Melee 104 | . . . 104 Ramming . | . . . . Kinetic 1286 | 48 333 . 905 Thermal 713 | 97 478 . 138 Explosive 584 | . . 158 426 Electromagnetic . | . . . . Impact 104 | . . . 104 Slashing . | . . . . Piercing . | . . . . Highest Corruption . | . . . . Average Corruption . | . . . . Corruption Purged . | . . . . Corruption Blocked . | . . . . Overload Shots . | . . . . Overflow Damage 3 | . . . 3 Projectiles . | . . . . Explosions . | . . . . Melee 3 | . . . 3 Knockbacks . | . . . . Impact . | . . . . Kinetic . | . . . . Secondary . | . . . . Self-Inflicted Damage 68 | . . . 68 Shots 2 | . . . 2 Rammed . | . . . . Targets Rammed . | . . . . Kicked . | . . . . Crushed . | . . . . Highest Temperature 204 | 45 204 . 2 Average Temperature 45 | 17 50 . 2 Received Heat Transfer 312 | . 144 . 168 Siege Activations . | . . . . Robots Corrupted . | . . . . Combat Hostiles . | . . . . Parts Fried . | . . . . Impact Corruptions 1 | . . . 1 Robots Melted . | . . . . Combat Hostiles . | . . . . Parts Melted 3 | 2 1 . . Heat Transferred 1776 | 444 1036 . 296 Parts Sabotaged . | . . . . Parts Stolen . | . . . . Parts Stripped . | . . . . Power Chain Reactions . | . . . . Alert | -11 -10 -10 -10 ------- Run | Yrd Mat Min Sub Peak Influence 252 | 20 252 132 . Initial 42 | . 13 42 . Average 69 | 5 132 27 . Maximum Alert Level 1 | . 1 . . Low Security (%) 93 | 100 84 100 . Level 1 6 | . 15 . . Level 2 . | . . . . Level 3 . | . . . . Level 4 . | . . . . Level 5 . | . . . . High Security . | . . . . Max Security . | . . . . Squads Dispatched 3 | . 3 . . Investigation 1 | . 1 . . Extermination . | . . . . Reinforcement 2 | . 2 . . Assault . | . . . . Garrison . | . . . . Intercept . | . . . . Searches Triggered . | . . . . Construction Impeded . | . . . . Haulers Reinforced . | . . . . Active Scanning Responses . | . . . . Cargo Convoy Interrupts . | . . . . Stealth | -11 -10 -10 -10 --------- Run | Yrd Mat Min Sub Distress Signals . | . . . . Communications Jammed . | . . . . Distress Signals . | . . . . Times Spotted 32 | . 17 3 12 Peak Tracking Total 3 | . 3 3 2 Tactical Retreats 1 | . 1 . . Traps | -11 -10 -10 -10 ------- Run | Yrd Mat Min Sub Traps Triggered 2 | . 2 . . Indirectly . | . . . . Trap Hack Attempts . | . . . . Triggered . | . . . . Disarmed . | . . . . Reprogrammed . | . . . . Reused . | . . . . Traps Extracted . | . . . . Installed . | . . . . Triggered . | . . . . Machines | -11 -10 -10 -10 ---------- Run | Yrd Mat Min Sub Machines Disabled 2 | . 1 1 . Max in Single Turn 1 | . 1 1 . Machines Repaired . | . . . . Machines Dismantled . | . . . . Machines Sabotaged . | . . . . Overloaded Fab Kills . | . . . . Hacking | -11 -10 -10 -10 --------- Run | Yrd Mat Min Sub Machines Accessed 3 | . 3 . . Terminals 2 | . 2 . . Fabricators . | . . . . Repair Stations . | . . . . Recycling Units 1 | . 1 . . Scanalyzers . | . . . . Garrison Access . | . . . . Total Hacks 5 | . 5 . . Successful 4 | . 4 . . Failed 1 | . 1 . . Catastrophic . | . . . . Database Lockouts . | . . . . Manual 4 | . 4 . . Terminals 4 | . 4 . . Fabricators . | . . . . Repair Stations . | . . . . Recycling Units 1 | . 1 . . Scanalyzers . | . . . . Garrison Access . | . . . . Terminal Hacks 1 | . 1 . . Zone Layout 1 | . 1 . . Fabricator Hacks . | . . . . Repair Station Hacks . | . . . . Recycling Unit Hacks 1 | . 1 . . Retrieve Components 1 | . 1 . . Scanalyzer . | . . . . Garrison Access Hacks . | . . . . Unauthorized Hacks 2 | . 2 . . Terminals 2 | . 2 . . Botnet 2 | . 2 . . Fabricators . | . . . . Repair Stations . | . . . . Recycling Units . | . . . . Scanalyzers . | . . . . Garrison Access . | . . . . Data Cores Recovered . | . . . . Used . | . . . . Hacking Detections 1 | . 1 . . Full Trace Events . | . . . . Feedback Events . | . . . . Feedback Blocked . | . . . . Robot Schematics Acquired . | . . . . Robots Built . | . . . . Authchips . | . . . . Time . | . . . . Total Robot Build Rating . | . . . . Part Schematics Acquired . | . . . . Parts Built . | . . . . Authchips . | . . . . Time . | . . . . Total Part Build Rating . | . . . . Parts Repaired . | . . . . Time . | . . . . Parts Recycled . | . . . . Recycled Matter . | . . . . Retrieved Matter . | . . . . Retrieved Components 10 | . 10 . . Parts Scanalyzed . | . . . . Part Schematics Acquired . | . . . . Parts Damaged . | . . . . Bothacking | -11 -10 -10 -10 ------------ Run | Yrd Mat Min Sub Used RIF Installer . | . . . . Robots Hacked . | . . . . Non-combat . | . . . . Combat . | . . . . Robot Hacks Applied . | . . . . Relay Couplers Released . | . . . . Fabnet Peak Effective % . | . . . . Robots Rewired . | . . . . Allies Hacked . | . . . . Hacks Repelled . | . . . . Allies | -11 -10 -10 -10 -------- Run | Yrd Mat Min Sub Total Allies . | . . . . Largest Group . | . . . . Highest-Rated Group . | . . . . Highest-Rated Ally . | . . . . Total Orders . | . . . . Ally Attacks . | . . . . Total Damage . | . . . . Kills . | . . . . Allies Corrupted . | . . . . Allies Melted . | . . . . Intel | -11 -10 -10 -10 ------- Run | Yrd Mat Min Sub Robot Analysis Total . | . . . . Derelict Logs Recovered 2 | . . 1 1 Drone Launches . | . . . . Drone Recoveries . | . . . . Exploration | -11 -10 -10 -10 ------------- Run | Yrd Mat Min Sub Turns Passed 3099 | 130 924 1180 865 Spaces Moved 1700 | 61 473 729 437 Core 8 | 8 . . . Treads 1692 | 53 473 729 437 Legs . | . . . . Wheels . | . . . . Hover . | . . . . Flight . | . . . . Fastest Speed 50 | 50 160 160 160 Average Speed 159 | 145 160 160 160 Slowest Speed 160 | 160 160 160 160 Overloaded Moves . | . . . . Propulsion Burnouts . | . . . . Robots Hopped . | . . . . Cave-ins Triggered . | . . . . Exploration Rate (%) 48 | 4 53 102 34 Regions Visited 3 Branch Regions 2 Pre-discovered Areas 1 | . . 1 . Known Exits Taken . | . . . . Unknown Exits Taken 3 | 1 1 1 . Scrap Searched 1 | . . 1 . Spaces Dug 5 | . . 5 . Terrain Destroyed 160 | . . 35 125 Melee . | . . . . Projectile . | . . . . AOE 160 | . . 35 125 Terrain Rammed . | . . . . Walls Destroyed . | . . . . Machines Disabled . | . . . . Actions | -11 -10 -10 -10 --------- Run | Yrd Mat Min Sub Total 1886 | 81 552 737 516 Wait . | . . . . Move 1697 | 60 472 728 437 Hop . | . . . . Pick Up 27 | 5 16 . 6 Fast Attach 10 | 6 4 . . Attach 4 | . 1 . 3 Detach . | . . . . Swap 19 | 1 5 3 10 Drop 15 | . 9 1 5 Fire 88 | 9 45 5 29 Melee 26 | . . . 26 Ram . | . . . . Kick . | . . . . Crush . | . . . . Escape Stasis . | . . . . Rewire . | . . . . Trap . | . . . . Miscellaneous . | . . . . Route ------- -11/Scrapyard -10/Materials (discovered 2 exits: [Mat] / [*Min]) -10/Mines (discovered 3 exits: [*Mat x2] / [*Sub]) -10/Subcaves History --------- Turn | Location | Event 8 | -11/Scrapyard | Discovered new exit (range 16) 131 | -11/Scrapyard | Entered Materials 316 | -10/Materials | Build established: Mutant 404 | -10/Materials | Discovered new exit (range 12) 507 | -10/Materials | Discovered new exit (range 15) 1055 | -10/Materials | Entered Mines 1207 | -10/Mines | Learned location of Mines (-9) 1248 | -10/Mines | Received a Rocket Launcher from a helpful Derelict 1657 | -10/Mines | Discovered new exit (range 10) 1771 | -10/Mines | Discovered new exit (range 5) 2208 | -10/Mines | Discovered new exit (range 15) 2235 | -10/Mines | Entered Subcaves 2247 | -10/Subcaves | Learned Materials stockpile data 2286 | -10/Subcaves | Shifting Twisted Machinery released Sub. Shrapnel Launcher 2350 | -10/Subcaves | Shifting Twisted Machinery released Sub. Monowheel 2563 | -10/Subcaves | Ambushed by Subdwellers from Twisted Machinery 2863 | -10/Subcaves | Core integrity fell below 50% 3096 | -10/Subcaves | Core integrity fell below 20% 3100 | -10/Subcaves | Destroyed by WL-SFO(R) with Subdweller Machine Gun Last Messages --------------- 02880_ Acquired Spk. Treads. 02881_ Acquired 15 matter. 02892_ Acquired 40 matter. 02895_ Dropped Assault Rifle. 02896_ Acquired Battle Cannon. 02897_ Dropped Broken Sub. Shrapnel Launcher. 02940_ Lgt. Treads destroyed. 02943_ VX-ERD(R) destroyed. 02943_ MW-X5P(R) destroyed. 02952_ The unstable cave ceiling collapses. 02958_ Acquired 9 matter. 02971_ Subatomizers dissect the Disposable Heat Sink. 02984_ The unstable cave ceiling collapses. 03014_ Subatomizers dissect the Disposable Heat Sink. 03080_ Lgt. Ion Engine destroyed. 03092_ Destroyed Sub. Power Source. 03092_ WL-SFO(R) system corrupted by crushing effect. Map ----- +----------------------------------------------------+ | ????????????????????????????????????????????????? | | ????????????????????????????????????????????????? | | ????????????????????????????????????????????????? | | ????????????????????????????????????????????????? | | ????????????????????????????????????????????????? | | ????????????????????????????????????????????????? | | ????????????????????????????????????????????????? | | ????????????????????????????????????????????????? | | ????????????????????????????????????????????????? | | ????????????????????????????????????????????????? | | ????????????????????????????????????????????????? | | ????????????????????????????????????????????????? | | ????????????????????????????????????????????????? | | ????????????????????????????????????????????????? | | ????????????????????????????????????????#???????? | | ??????????????????????????????????????? ##??????? | | ?????????????????????????#????????????? ##?????? | | ???????????????????????## ?###???????? #?????? | | ??????????????????????## ?# ??????#? #?????? | | ?????????????????????## "#?# ?????? #?????? | | ????????????????????## ""###"##????? #??#### | | ?????????????????#### " # " #????? ??## # | | ???????????????### ##"###?### ?????# # | | ???????????????""" R ### #???????# | | ??????????????#""" R ##??##### | | ???????????????""" " @ #### ## | | ???????????????""" " # | | ???????????????""" ""##### ## | | ??????????????? """??????## #### ### ## | | ??????????????????????????## #?## ## # # | | ???????????????????????????## ##??## | | ????????????????????????????## #???## | | ????????????????????????????? ???# # ## | | ????????????????????????????## #??# ######## | | ?????????????????????????????### #? #??????? | | ???????????????????????????????? ##? #??????? | | ???????????????????????????????? #?? #??????? | | ???????????????????????????????? ?#####??????? | | ???????????????????????????????? #???????????? | | ???????????????????????????????? ???????????? | | ????????????????????????????????#???????????????? | | ????????????????????????????????????????????????? | | ????????????????????????????????????????????????? | | ????????????????????????????????????????????????? | | ????????????????????????????????????????????????? | | ????????????????????????????????????????????????? | | ????????????????????????????????????????????????? | | ????????????????????????????????????????????????? | | ????????????????????????????????????????????????? | | ????????????????????????????????????????????????? | +----------------------------------------------------+ Best States ------------- Heat Dissipation 25 Energy Generation 10 Energy Capacity 250 Matter Stores 300 Matter Capacity 300 Sight Range 16 Terrain Scan Density 10 Propulsion Shielding 33 Evasion (%) 40 Targeting Accuracy 5 Recoil Reduction 2 Item Schematics ----------------- None Robot Schematics ------------------ None Fabricated ------------ Nothing Alien Tech Used ----------------- None Achievements -------------- None Challenges ------------ None Game ------ Seed RelayCorruptionRailgun Manual? 0 Play Time 00:19:41 Cumulative 83.6 hours Start 2024.04.19 @ 20:59:38 End 2024.04.19 @ 21:18:16 Sessions 1 Manual Loads 0 Difficulty Rogue Special Mode None Game No. 102 Rogue 102 Adventurer 0 Explorer 0 Win Type - Total 0 Types 0/0/0/0/0/0/0/0/0 Lore% 25 Gallery% 47 Achievement% 33 Wizard Run 0 Options --------- Layout 1 ASCII 0 Keyboard 1 Movement Vi Keybinds 0 Fullscreen 1 Font 24/Smallcaps Map View 50x35 Zoom Use 0% Tactical HUD 1 Map Filters NONE Filters NONE Steam 1 RUN: 245bc0cf-5602-4bdd-8a5b-2675ed092420